bitfinex/quotes_BTCUSD_20241226
["timestamp","ask_amount","ask_price","bid_price","bid_amount"]
[1735232566671,0.14331115,96493.0,96482.0,0.207292]
[1735232566874,0.03932483,96493.0,96482.0,0.414584]
[1735232568219,0.207262,96496.0,96482.0,0.207292]
[1735232568421,0.207272,96492.0,96482.0,0.207292]
[1735232569015,0.207272,96492.0,96481.0,0.00016037]
[1735232569636,0.414543,96492.0,96481.0,0.00016037]
[1735232569771,0.207271,96492.0,96481.0,0.00016037]
[1735232570648,0.208271,96492.0,96481.0,0.00016037]
[1735232571075,0.209271,96492.0,96481.0,0.00016037]
[1735232571228,0.207282,96487.0,96481.0,0.00016037]
[1735232572810,0.2489375,96487.0,96481.0,0.00016037]
[1735232572942,0.207282,96487.0,96481.0,0.00116037]
[1735232573345,0.207282,96487.0,96481.0,0.00216037]
[1735232574171,0.207282,96487.0,96481.0,0.00016037]
[1735232574369,0.207282,96487.0,96481.0,0.00116037]
[1735232574592,0.207282,96487.0,96481.0,0.00216037]
[1735232579407,0.207286,96485.0,96481.0,0.00216037]
[1735232580420,0.207286,96485.0,96481.0,0.00016037]
[1735232580621,0.207286,96485.0,96481.0,0.00316037]
[1735232581284,0.414572,96485.0,96481.0,0.00316037]
[1735232582274,0.207276,96490.0,96481.0,0.00316037]
[1735232582483,0.09258747,96507.0,96484.0,0.207288]
[1735232582690,0.09258747,96507.0,96502.0,0.207248]
[1735232583135,0.09258747,96507.0,96504.0,0.207243]
[1735232583343,0.28928876,96507.0,96489.0,0.207276]
[1735232583550,0.207257,96499.0,96481.0,0.15016037]
[1735232583754,0.2357037,96498.0,96484.0,0.208287]
[1735232584132,0.0284457,96498.0,96492.0,0.02050329]
[1735232584357,0.0284457,96498.0,96484.0,0.207287]
[1735232584704,0.0284457,96498.0,96483.0,0.20729]
[1735232584903,0.0284457,96498.0,96487.0,0.207281]
[1735232585136,0.05201527,96497.0,96487.0,0.207281]
[1735232585506,0.05201527,96497.0,96485.0,0.02077736]
[1735232585706,0.0772,96503.0,96492.0,0.20727]
[1735232585910,0.18118632,96503.0,96485.0,0.02077736]
[1735232586135,0.211259,96498.0,96485.0,0.22806136]
[1735232586336,0.013,96498.0,96489.0,0.207276]
[1735232586585,0.04014373,96497.0,96489.0,0.207276]
[1735232586789,0.04014373,96497.0,96492.0,0.001]
[1735232587200,0.10398632,96496.0,96485.0,0.02077736]
[1735232587412,0.10398632,96496.0,96481.0,0.02550501]
[1735232587616,0.0001712,96506.0,96495.0,0.207263]
[1735232587821,0.10398632,96505.0,96495.0,0.207263]
[1735232588059,0.31123032,96505.0,96493.0,0.207267]
[1735232588321,0.0001712,96506.0,96495.0,0.12392656]
[1735232588524,0.0001712,96506.0,96496.0,0.207262]
[1735232588733,0.0001712,96506.0,96500.0,0.207252]
[1735232589138,0.0001712,96506.0,96497.0,0.20682443]
[1735232589719,0.0001712,96506.0,96500.0,0.207252]
[1735232590095,0.0041712,96506.0,96500.0,0.207252]
[1735232590301,0.0131712,96506.0,96500.0,0.207252]
[1735232590682,0.0001712,96506.0,96500.0,0.207252]
[1735232590989,0.0091712,96506.0,96500.0,0.208252]
[1735232591166,0.0091712,96506.0,96500.0,0.207252]
[1735232591548,0.0131712,96506.0,96500.0,0.207252]
[1735232591952,0.0171712,96506.0,96500.0,0.207252]
[1735232592133,0.10398632,96505.0,96495.0,0.14925326]
[1735232592341,0.0751,96504.0,96485.0,0.1711594]
[1735232592564,0.10398632,96503.0,96482.0,0.207291]
[1735232592733,0.10398632,96503.0,96481.0,0.02596778]
[1735232592939,0.207249,96502.0,96481.0,0.02596778]
[1735232593149,0.207271,96492.0,96481.0,0.02596778]
[1735232593375,0.207288,96485.0,96481.0,0.02596778]
[1735232593998,0.207275,96490.0,96481.0,0.02596778]
[1735232594203,0.207279,96488.0,96481.0,0.02596778]
[1735232594445,0.207288,96484.0,96481.0,0.02596778]
[1735232594649,0.414576,96484.0,96481.0,0.02996778]
[1735232595272,0.414576,96484.0,96481.0,0.00416037]
[1735232595499,0.207288,96484.0,96481.0,0.00416037]
[1735232595904,0.207292,96482.0,96481.0,0.00416037]
[1735232596113,0.38637832,96482.0,96481.0,0.00416037]
[1735232596314,0.38637832,96482.0,96481.0,0.00516037]
[1735232596534,0.38637832,96482.0,96481.0,0.00016037]
[1735232597425,0.39137832,96482.0,96481.0,0.00116037]
[1735232597596,0.45397504,96482.0,96481.0,0.00016037]
[1735232597997,0.45897504,96482.0,96481.0,0.00116037]
[1735232599372,0.47197504,96482.0,96481.0,0.00016037]
[1735232599572,0.47897504,96482.0,96481.0,0.00116037]
[1735232600542,0.48097504,96482.0,96481.0,0.00116037]
[1735232600906,0.67857504,96482.0,96481.0,0.00116037]
[1735232601629,0.67657504,96482.0,96481.0,0.00116037]
[1735232601847,0.44097832,96482.0,96481.0,0.00116037]
[1735232602093,0.18908632,96482.0,96481.0,0.00116037]
[1735232602668,0.01,96482.0,96481.0,0.00116037]
[1735232602872,0.01,96482.0,96481.0,0.23098158]
[1735232603088,0.01,96482.0,96481.0,0.46244069]
[1735232603266,0.16928321,96484.0,96482.0,0.15]
[1735232603469,0.0001712,96506.0,96484.0,0.15]
[1735232603470,0.09290071,96492.0,96484.0,0.15]
[1735232603707,0.09290071,96492.0,96491.0,0.207273]
[1735232603882,0.09290071,96492.0,96491.0,0.357273]
[1735232605087,0.0001712,96506.0,96491.0,0.357273]
[1735232605088,0.0001712,96506.0,96505.0,0.207243]
[1735232606389,0.0021712,96506.0,96505.0,0.207243]
[1735232606738,0.10615752,96506.0,96494.0,0.207266]
[1735232606921,0.10815752,96506.0,96494.0,0.207266]
[1735232607145,0.10815752,96506.0,96498.0,0.207256]
[1735232607335,0.10415752,96506.0,96498.0,0.43563787]
[1735232607544,0.10615752,96506.0,96502.0,0.207248]
[1735232607952,0.10615752,96506.0,96498.0,0.22838087]
[1735232608109,0.10715752,96506.0,96498.0,0.22838087]
[1735232608708,0.10415752,96506.0,96498.0,0.22838087]
[1735232608917,0.01041575,96505.0,96498.0,0.02112487]
[1735232609720,0.01041575,96505.0,96498.0,0.22838187]
[1735232609944,0.10515752,96506.0,96498.0,0.22838187]
[1735232610352,0.10515752,96506.0,96498.0,0.43563887]
[1735232610556,0.10515752,96506.0,96502.0,0.207248]
[1735232611022,0.10515752,96506.0,96498.0,0.22838187]
[1735232611818,0.10415752,96506.0,96498.0,0.22838187]
[1735232612033,0.10715752,96506.0,96498.0,0.22838187]
[1735232612222,0.10715752,96506.0,96498.0,0.02112487]
[1735232612425,0.207245,96504.0,96491.0,0.04337241]
[1735232612650,0.10398632,96503.0,96486.0,0.207282]
[1735232612827,0.10398632,96503.0,96480.0,0.12392656]
[1735232613188,0.207249,96502.0,96488.0,0.207279]
[1735232613394,0.10398632,96501.0,96488.0,0.207279]
[1735232613596,0.16735536,96501.0,96488.0,0.207279]
[1735232614011,0.0468,96499.0,96482.0,0.207292]
[1735232614218,0.10398632,96498.0,96483.0,0.02107533]
[1735232614642,0.20726,96497.0,96484.0,0.207288]
[1735232614822,0.10398632,96496.0,96484.0,0.207288]
[1735232615041,0.207264,96495.0,96484.0,0.207288]
[1735232615255,0.31125032,96495.0,96484.0,0.207288]
[1735232615457,0.31125032,96495.0,96481.0,0.00016037]
[1735232615458,0.207271,96492.0,96481.0,0.00016037]
[1735232615602,0.207286,96485.0,96481.0,0.00016037]
[1735232615807,0.10398632,96484.0,96481.0,0.00016037]
[1735232616561,0.0806,96482.0,96481.0,0.00016037]
[1735232616720,0.18458632,96482.0,96481.0,0.00016037]
[1735232617552,0.18458632,96482.0,96481.0,0.00216037]
[1735232617850,0.24450255,96482.0,96481.0,0.00216037]
[1735232618048,0.24450255,96482.0,96481.0,0.00016037]
[1735232618656,0.24550255,96482.0,96481.0,0.00016037]
[1735232619036,0.207305,96477.0,96463.0,0.207332]
[1735232619377,0.207307,96475.0,96463.0,0.207332]
[1735232619608,0.10398632,96474.0,96463.0,0.207332]
[1735232620456,0.207311,96473.0,96463.0,0.207332]
[1735232620662,0.10398632,96472.0,96463.0,0.207332]
[1735232621030,0.10398632,96472.0,96463.0,0.001]
[1735232621233,0.10398632,96472.0,96463.0,0.210331]
[1735232621439,0.207318,96470.0,96463.0,0.002]
[1735232621676,0.05847238,96471.0,96460.0,8.57e-05]
[1735232621990,0.1624587,96471.0,96463.0,0.005]
[1735232622196,0.1624587,96471.0,96463.0,0.002]
[1735232622502,0.1624587,96471.0,96463.0,0.005]
[1735232622802,0.05770767,96470.0,96463.0,0.002]
[1735232623357,0.05770767,96470.0,96461.0,0.207337]
[1735232623561,0.10398632,96471.0,96461.0,0.207337]
[1735232625199,0.10398632,96471.0,96460.0,0.02047668]
[1735232625200,0.207332,96464.0,96460.0,8.57e-05]
[1735232625400,0.10398632,96463.0,96460.0,8.57e-05]
[1735232626239,0.207335,96462.0,96460.0,8.57e-05]
[1735232626441,0.15585165,96461.0,96460.0,8.57e-05]
[1735232626773,0.15585165,96461.0,96460.0,0.0010857]
[1735232627196,0.15585165,96461.0,96460.0,8.57e-05]
[1735232627402,0.15585165,96461.0,96460.0,0.0020857]
[1735232627772,0.15585165,96461.0,96460.0,0.0050857]
[1735232628000,0.15585165,96461.0,96460.0,0.0030857]
[1735232628202,0.15585165,96461.0,96460.0,8.57e-05]
[1735232628375,0.15585165,96461.0,96460.0,0.0020857]
[1735232628697,0.10398632,96461.0,96460.0,0.0050857]
[1735232628899,0.10398632,96461.0,96455.0,0.00201575]
[1735232629103,0.207339,96460.0,96452.0,8.56e-05]
[1735232629307,0.10398632,96459.0,96452.0,8.56e-05]
[1735232629684,0.207344,96458.0,96452.0,8.56e-05]
[1735232629878,0.31133032,96458.0,96452.0,8.56e-05]
[1735232630095,0.31133032,96458.0,96455.0,0.002]
[1735232630514,0.31133032,96458.0,96452.0,8.56e-05]
[1735232630921,0.31133032,96458.0,96452.0,0.0020856]
[1735232631165,0.31133032,96458.0,96455.0,0.002]
[1735232631482,0.31133032,96458.0,96452.0,0.0020856]
[1735232631678,0.31133032,96458.0,96452.0,0.0060856]
[1735232631958,0.36319685,96458.0,96452.0,0.02594556]
[1735232632196,0.36319685,96458.0,96452.0,0.02194556]
[1735232632422,0.36319685,96458.0,96455.0,0.004]
[1735232632633,0.31133032,96458.0,96455.0,0.004]
[1735232632842,0.207331,96464.0,96455.0,0.004]
[1735232633048,0.10398632,96463.0,96455.0,0.004]
[1735232633264,0.207335,96462.0,96455.0,0.004]
[1735232633474,0.207339,96460.0,96455.0,0.006]
[1735232633690,0.31132532,96460.0,96455.0,0.006]
[1735232633893,0.31132532,96460.0,96455.0,0.004]
[1735232634099,0.31132532,96460.0,96450.0,0.12392656]
[1735232634310,0.31132532,96460.0,96455.0,0.001]
[1735232634734,0.51866532,96460.0,96455.0,0.001]
[1735232635184,0.414688,96458.0,96455.0,0.001]
[1735232635390,0.51867432,96458.0,96455.0,0.001]
[1735232635768,0.51867432,96458.0,96455.0,0.003]
[1735232635970,0.51867432,96458.0,96455.0,0.005]
[1735232636556,0.51867432,96458.0,96455.0,0.003]
[1735232636759,0.51867432,96458.0,96455.0,0.005]
[1735232637553,0.59941485,96458.0,96455.0,0.005]
[1735232637745,0.59941485,96458.0,96455.0,0.002]
[1735232638043,0.59941485,96458.0,96455.0,0.005]
[1735232639401,0.51867432,96458.0,96455.0,0.005]
[1735232639610,0.207348,96456.0,96455.0,0.005]
[1735232639831,0.31133432,96456.0,96455.0,0.005]
[1735232640078,0.207374,96444.0,96441.0,0.02108456]
[1735232640292,0.20739,96437.0,96429.0,8.56e-05]
[1735232640499,0.10398632,96436.0,96429.0,8.56e-05]
[1735232640902,0.15078632,96436.0,96429.0,8.56e-05]
[1735232641113,0.1044,96432.0,96429.0,8.56e-05]
[1735232641315,0.47434405,96432.0,96429.0,8.56e-05]
[1735232641729,0.47434405,96432.0,96431.0,0.0012]
[1735232642147,0.47434405,96432.0,96431.0,0.0002]
[1735232642466,0.39278632,96432.0,96431.0,0.0012]
[1735232642868,0.31638632,96432.0,96431.0,0.0012]
[1735232643072,0.31838632,96432.0,96431.0,0.0012]
[1735232643905,0.31838632,96432.0,96416.0,0.2068032]
[1735232644103,0.207404,96430.0,96416.0,0.2068032]
[1735232644343,0.207408,96428.0,96416.0,0.2068032]
[1735232644544,0.10398632,96427.0,96416.0,0.2068032]
[1735232644750,0.10398632,96427.0,96422.0,0.20742]
[1735232644973,0.002,96432.0,96417.0,0.12392656]
[1735232645188,0.008,96432.0,96430.0,0.207402]
[1735232645388,0.006,96432.0,96430.0,0.207402]
[1735232645530,0.008,96432.0,96430.0,0.207402]
[1735232645980,9.035e-05,96436.0,96426.0,0.02036435]
[1735232646155,0.006,96432.0,96427.0,0.20741]
[1735232646391,0.007,96432.0,96427.0,0.41482]
[1735232646599,0.007,96432.0,96427.0,0.20741]
[1735232646793,0.006,96432.0,96427.0,0.20741]
[1735232646995,0.006,96432.0,96426.0,0.02036435]
[1735232647341,0.02134794,96431.0,96426.0,0.02036435]
[1735232647714,0.02134794,96431.0,96427.0,0.20741]
[1735232648278,9.035e-05,96436.0,96427.0,0.20741]
[1735232648480,0.006,96432.0,96430.0,0.001]
[1735232648705,0.001,96432.0,96427.0,0.20741]
[1735232648923,0.001,96432.0,96427.0,0.001]
[1735232649140,0.006,96431.0,96427.0,0.001]
[1735232649363,0.006,96431.0,96426.0,0.02036435]
[1735232649653,0.006,96431.0,96430.0,0.001]
[1735232649858,9.035e-05,96436.0,96426.0,0.02036435]
[1735232650080,9.035e-05,96436.0,96427.0,0.20741]
[1735232650267,0.001,96431.0,96427.0,0.20741]
[1735232650889,0.001,96431.0,96426.0,0.02036435]
[1735232651260,0.31139032,96430.0,96415.0,0.207436]
[1735232651473,0.23865407,96429.0,96415.0,0.207436]
[1735232651852,0.23865407,96429.0,96415.0,0.22776562]
[1735232652303,0.23865407,96429.0,96426.0,0.001]
[1735232652304,0.10398632,96428.0,96426.0,0.001]
[1735232652510,0.20741,96427.0,96426.0,0.001]
[1735232652719,0.10398632,96428.0,96417.0,0.207432]
[1735232652924,0.05510394,96427.0,96417.0,0.207432]
[1735232653134,0.207412,96426.0,96416.0,0.02105392]
[1735232653910,0.10798632,96428.0,96417.0,0.207432]
[1735232654110,0.10798632,96428.0,96416.0,0.02105392]
[1735232654338,0.20741,96427.0,96416.0,0.02105392]
[1735232654591,0.31139632,96427.0,96416.0,0.02105392]
[1735232654769,0.31139632,96427.0,96416.0,0.02113952]
[1735232655206,0.31539632,96427.0,96416.0,0.02113952]
[1735232655566,0.31939632,96427.0,96416.0,0.02113952]
[1735232656039,0.11298632,96427.0,96417.0,0.207432]
[1735232656239,0.207412,96426.0,96416.0,0.02113952]
[1735232657561,0.11198632,96427.0,96417.0,0.207432]
[1735232657771,0.11298632,96427.0,96417.0,0.207432]
[1735232658024,0.05277943,96426.0,96417.0,0.207432]
[1735232658535,0.001,96426.0,96417.0,0.207432]
[1735232658789,0.001,96426.0,96416.0,0.02113952]
[1735232659030,0.207415,96425.0,96416.0,0.02113952]
[1735232660080,0.004,96426.0,96417.0,0.00103713]
[1735232660323,0.004,96426.0,96422.0,0.207421]
[1735232660585,0.003,96426.0,96423.0,0.19643692]
[1735232660789,0.003,96426.0,96425.0,0.15]
[1735232660995,9.035e-05,96436.0,96435.0,0.207393]
[1735232662416,0.00209035,96436.0,96435.0,0.207393]
[1735232662621,9.035e-05,96436.0,96435.0,0.207393]
[1735232664053,0.00109035,96436.0,96435.0,0.207393]
[1735232664631,9.035e-05,96436.0,96435.0,0.207393]
[1735232664861,0.00109035,96436.0,96435.0,0.207393]
[1735232665031,9.035e-05,96436.0,96435.0,0.27417256]
[1735232665305,0.00109035,96436.0,96435.0,0.29466101]
[1735232665509,0.00109035,96436.0,96435.0,0.25318201]
[1735232666115,9.035e-05,96436.0,96435.0,0.04578901]
[1735232666325,9.035e-05,96436.0,96433.0,0.207397]
[1735232666525,9.035e-05,96436.0,96433.0,0.414794]
[1735232667270,9.035e-05,96436.0,96435.0,0.002]
[1735232667678,9.035e-05,96436.0,96433.0,0.44015248]
[1735232667897,0.00109035,96436.0,96433.0,0.44015248]
[1735232668527,0.00226155,96436.0,96433.0,0.44015248]
[1735232668858,0.00026155,96436.0,96433.0,0.44015248]
[1735232669200,0.00226155,96436.0,96433.0,0.44015248]
[1735232670205,0.00226155,96436.0,96433.0,0.44115248]
[1735232670420,0.00026155,96436.0,96433.0,0.44115248]
[1735232670626,0.00026155,96436.0,96433.0,0.44215248]
[1735232670870,0.00026155,96436.0,96433.0,0.44015248]
[1735232671025,0.00026155,96436.0,96433.0,0.44115248]
[1735232671230,0.00026155,96436.0,96433.0,0.44215248]
[1735232671696,0.00026155,96436.0,96433.0,0.44015248]
[1735232671884,0.00026155,96436.0,96433.0,0.44115248]
[1735232673083,0.00026155,96436.0,96433.0,0.44015248]
[1735232673279,0.00026155,96436.0,96433.0,0.44115248]
[1735232673890,0.00026155,96436.0,96433.0,0.44015248]
[1735232674209,0.00026155,96436.0,96433.0,0.44215248]
[1735232674664,0.00026155,96436.0,96433.0,0.44115248]
[1735232674878,0.00026155,96436.0,96433.0,0.44015248]
[1735232675056,0.00026155,96436.0,96433.0,0.44115248]
[1735232675304,0.00026155,96436.0,96433.0,0.44315248]
[1735232676241,0.00026155,96436.0,96433.0,0.44215248]
[1735232676550,0.00026155,96436.0,96433.0,0.44015248]
[1735232676956,0.00126155,96436.0,96433.0,0.44015248]
[1735232677861,0.00126155,96436.0,96435.0,0.357393]
[1735232678017,0.00026155,96436.0,96435.0,0.437493]
[1735232678223,0.00026155,96436.0,96435.0,0.46983833]
[1735232678424,0.00026155,96436.0,96435.0,0.437493]
[1735232678425,0.00126155,96436.0,96435.0,0.437493]
[1735232678650,0.00126155,96436.0,96435.0,0.4698386]
[1735232680174,0.00026155,96436.0,96435.0,0.55142668]
[1735232680313,0.00026155,96436.0,96435.0,0.4738386]
[1735232680514,0.00026155,96436.0,96435.0,0.445493]
[1735232680721,0.00026155,96436.0,96435.0,0.441493]
[1735232681143,0.00126155,96436.0,96435.0,0.449493]
[1735232681344,0.00026155,96436.0,96435.0,0.441493]
[1735232681783,0.00126155,96436.0,96435.0,0.450493]
[1735232682583,0.00126155,96436.0,96435.0,0.366393]
[1735232683000,0.00126155,96436.0,96435.0,0.370393]
[1735232683378,0.00026155,96436.0,96435.0,0.357393]
[1735232683783,0.00126155,96436.0,96435.0,0.370393]
[1735232684536,0.00026155,96436.0,96435.0,0.357393]
[1735232684851,0.00126155,96436.0,96435.0,0.43755364]
[1735232685032,0.00126155,96436.0,96435.0,0.43055364]
[1735232685232,0.00126155,96436.0,96435.0,0.361393]
[1735232685457,0.00226155,96436.0,96435.0,0.370393]
[1735232686009,0.00226155,96436.0,96435.0,0.366393]
[1735232686361,0.00226155,96436.0,96435.0,0.370393]
[1735232686693,0.00026155,96436.0,96435.0,0.361393]
[1735232686929,0.00126155,96436.0,96435.0,0.368393]
[1735232687133,0.00126155,96436.0,96435.0,0.361393]
[1735232687463,0.00226155,96436.0,96435.0,0.370393]
[1735232687668,0.00126155,96436.0,96435.0,0.357393]
[1735232687883,0.00126155,96436.0,96435.0,0.361393]
[1735232688052,0.00226155,96436.0,96435.0,0.368393]
[1735232688279,0.00126155,96436.0,96435.0,0.361393]
[1735232688417,0.00126155,96436.0,96435.0,0.55424284]
[1735232688630,0.0001712,96455.0,96435.0,0.55424284]
[1735232688631,0.0001712,96455.0,96454.0,0.207352]
[1735232690217,0.0001712,96455.0,96454.0,0.210352]
[1735232690459,0.0001712,96455.0,96454.0,0.209352]
[1735232690836,0.0001712,96455.0,96454.0,0.208352]
[1735232691069,0.0001712,96455.0,96454.0,0.209352]
[1735232691587,0.0001712,96455.0,96454.0,0.208352]
[1735232692219,0.0001712,96455.0,96454.0,0.207352]
[1735232692556,0.0001712,96455.0,96454.0,0.47202687]
[1735232692757,0.0001712,96455.0,96454.0,0.40981977]
[1735232693378,0.0001712,96455.0,96454.0,0.41281977]
[1735232693713,0.0001712,96455.0,96454.0,0.41081977]
[1735232694100,0.0001712,96455.0,96454.0,0.40981977]
[1735232694306,0.0001712,96455.0,96454.0,0.41081977]
[1735232694544,0.0001712,96455.0,96454.0,0.41481977]
[1735232695481,0.0001712,96455.0,96454.0,0.05646777]
[1735232695482,0.0793712,96455.0,96454.0,0.05646777]
[1735232695686,0.08730832,96455.0,96454.0,0.03838732]
[1735232695907,0.08730832,96455.0,96454.0,0.03438732]
[1735232696109,0.08730832,96455.0,96454.0,0.03138732]
[1735232696569,0.08830832,96455.0,96454.0,0.008]
[1735232696992,0.0803712,96455.0,96454.0,0.006]
[1735232697202,0.0793712,96455.0,96454.0,0.001]
[1735232697573,0.0793712,96455.0,96454.0,0.003]
[1735232698536,0.0793712,96455.0,96454.0,0.002]
[1735232698735,0.0793712,96455.0,96454.0,0.003]
[1735232699450,0.0793712,96455.0,96454.0,0.004]
[1735232699887,0.19129464,96455.0,96454.0,0.003]
[1735232700083,0.19129464,96455.0,96439.0,0.02112515]
[1735232700084,0.207366,96448.0,96439.0,0.02112515]
[1735232700290,0.207369,96446.0,96439.0,0.02112515]
[1735232700726,0.207369,96446.0,96435.0,0.20790744]
[1735232700889,0.207374,96444.0,96435.0,0.00051544]
[1735232701093,0.207374,96444.0,96436.0,0.02041495]
[1735232701494,0.05187183,96445.0,96439.0,0.001]
[1735232702246,0.207363,96449.0,96439.0,0.001]
[1735232702247,0.207378,96442.0,96439.0,0.001]
[1735232702459,0.207382,96440.0,96439.0,0.001]
[1735232702669,0.39056832,96440.0,96439.0,0.001]
[1735232703052,0.39039586,96440.0,96439.0,0.001]
[1735232703774,0.39339586,96440.0,96435.0,0.00051544]
[1735232703976,0.207387,96438.0,96435.0,0.00051544]
[1735232704176,0.207391,96436.0,96435.0,0.00051544]
[1735232704406,0.31137732,96436.0,96435.0,0.00051544]
[1735232706737,0.39047732,96436.0,96435.0,0.00051544]
[1735232706989,0.38847732,96436.0,96435.0,0.00051544]
[1735232707243,0.39047732,96436.0,96435.0,0.00051544]
[1735232707487,0.307408,96428.0,96416.0,0.0195856]
[1735232707728,0.89191442,96428.0,96416.0,0.0195856]
[1735232708461,0.28453,96418.0,96416.0,0.0195856]
[1735232708674,0.45741632,96418.0,96416.0,0.0195856]
[1735232709147,0.1,96417.0,96416.0,0.00167119]
[1735232709413,0.20398632,96417.0,96416.0,0.00167119]
[1735232709655,0.29046055,96417.0,96416.0,0.00167119]
[1735232710501,0.29946055,96417.0,96416.0,0.00267119]
[1735232711046,0.21298632,96417.0,96416.0,0.00267119]
[1735232712073,0.19398632,96417.0,96416.0,0.00267119]
[1735232713110,0.013,96417.0,96416.0,0.00267119]
[1735232713318,0.013,96417.0,96416.0,0.00370832]
[1735232713494,0.013,96417.0,96416.0,0.00267119]
[1735232713943,0.004,96417.0,96416.0,0.32997875]
[1735232714154,0.011,96417.0,96416.0,0.29841273]
[1735232714359,0.011,96417.0,96416.0,0.25674311]
[1735232714532,0.007,96417.0,96416.0,0.25674311]
[1735232714744,0.007,96417.0,96416.0,0.27722534]
[1735232714944,0.009,96417.0,96416.0,0.27722534]
[1735232715162,0.009,96417.0,96416.0,0.02323902]
[1735232715373,0.007,96417.0,96416.0,0.00275679]
[1735232715512,0.077,96430.0,96416.0,0.00275679]
[1735232715513,0.207425,96421.0,96416.0,0.00175679]
[1735232715741,0.004,96417.0,96416.0,0.00375679]
[1735232715977,0.10798632,96417.0,96416.0,0.00375679]
[1735232716336,0.11098632,96417.0,96416.0,0.00175679]
[1735232716752,0.10398632,96417.0,96416.0,0.00175679]
[1735232716961,0.10698632,96417.0,96416.0,0.00175679]
[1735232717295,0.10398632,96417.0,96416.0,0.00175679]
[1735232717470,0.13512765,96417.0,96416.0,0.00175679]
[1735232718122,0.13612765,96417.0,96416.0,0.00175679]
[1735232718708,0.10898632,96417.0,96416.0,0.00175679]
[1735232718936,0.10598632,96417.0,96408.0,8.56e-05]
[1735232719146,0.10398632,96416.0,96405.0,0.207458]
[1735232719349,0.10398632,96416.0,96402.0,0.207462]
[1735232719350,0.10398632,96416.0,96406.0,0.41491]
[1735232719558,0.10398632,96416.0,96406.0,0.207455]
[1735232719741,0.10398632,96416.0,96407.0,0.207453]
[1735232719943,0.10398632,96415.0,96401.0,0.207466]
[1735232720303,0.10398632,96415.0,96405.0,0.001]
[1735232720747,0.31142232,96415.0,96405.0,0.001]
[1735232721503,0.31142232,96415.0,96401.0,0.207466]
[1735232721868,0.31142232,96415.0,96407.0,0.001]
[1735232722097,0.34276455,96415.0,96407.0,0.001]
[1735232722255,0.34276455,96415.0,96405.0,0.207456]
[1735232722460,0.34876455,96415.0,96405.0,0.208456]
[1735232722864,0.35076455,96415.0,96405.0,0.208456]
[1735232723086,0.35676455,96415.0,96407.0,0.001]
[1735232723320,0.05641916,96414.0,96405.0,0.207456]
[1735232723914,0.05641916,96414.0,96405.0,0.053456]
[1735232724116,0.05641916,96414.0,96401.0,0.207466]
[1735232724495,0.10998632,96415.0,96405.0,0.207456]
[1735232724700,0.11198632,96415.0,96405.0,0.207456]
[1735232725101,0.10398632,96415.0,96405.0,0.207456]
[1735232725457,0.002,96414.0,96405.0,0.207456]
[1735232725816,0.002,96414.0,96410.0,0.207447]
[1735232726017,0.414827,96426.0,96410.0,0.207447]
[1735232726227,0.002,96415.0,96410.0,0.33137356]
[1735232726424,0.008,96415.0,96410.0,0.33137356]
[1735232727130,0.006,96414.0,96410.0,0.33137356]
[1735232727588,0.006,96414.0,96410.0,0.207447]
[1735232727906,0.008,96414.0,96407.0,8.56e-05]
[1735232728110,0.207443,96412.0,96407.0,8.56e-05]
[1735232728388,0.006,96414.0,96412.0,0.207442]
[1735232728631,0.002,96414.0,96412.0,0.207442]
[1735232728801,0.002,96414.0,96412.0,0.414884]
[1735232729007,0.007,96415.0,96412.0,0.414884]
[1735232729212,0.11098632,96415.0,96407.0,8.56e-05]
[1735232729418,0.007,96412.0,96407.0,8.56e-05]
[1735232729655,0.31143132,96411.0,96407.0,8.56e-05]
[1735232730263,0.10398632,96411.0,96407.0,8.56e-05]
[1735232731497,0.10398632,96411.0,96407.0,0.0010856]
[1735232731704,0.10498632,96411.0,96407.0,0.0010856]
[1735232731934,0.10498632,96411.0,96407.0,8.56e-05]
[1735232732051,0.04712894,96410.0,96407.0,8.56e-05]
[1735232732257,0.10398632,96409.0,96407.0,8.56e-05]
[1735232732693,0.00785397,96408.0,96407.0,0.0010856]
[1735232732889,0.00785397,96408.0,96407.0,8.56e-05]
[1735232733435,0.11184029,96408.0,96407.0,8.56e-05]
[1735232733731,0.17287302,96408.0,96407.0,8.56e-05]
[1735232733977,0.17287302,96408.0,96397.0,0.02011126]
[1735232734152,0.207466,96401.0,96397.0,0.02011126]
[1735232734327,0.207471,96399.0,96397.0,0.02011126]
[1735232734529,0.10398632,96398.0,96391.0,0.02744714]
[1735232734821,0.23940421,96397.0,96391.0,0.02744714]
[1735232735053,0.35123036,96397.0,96391.0,0.02744714]
[1735232735225,0.0766,96394.0,96391.0,0.0002]
[1735232735383,0.31146932,96393.0,96391.0,0.00035443]
[1735232735749,0.31928778,96393.0,96391.0,0.00035443]
[1735232735907,0.0635296,96392.0,96391.0,0.00035443]
[1735232736109,0.1753227,96392.0,96391.0,0.00135443]
[1735232736495,0.1117931,96392.0,96391.0,0.00135443]
[1735232736920,0.1117931,96392.0,96391.0,0.00035443]
[1735232737086,0.1117931,96392.0,96391.0,0.00135443]
[1735232737494,0.1117931,96392.0,96391.0,0.00035443]
[1735232738142,0.1117931,96392.0,96391.0,0.00135443]
[1735232738889,0.1137931,96392.0,96391.0,0.00135443]
[1735232739023,0.1137931,96392.0,96382.0,0.02308361]
[1735232739205,0.00980678,96392.0,96391.0,8.56e-05]
[1735232739407,0.1137931,96392.0,96391.0,8.56e-05]
[1735232740424,0.00980678,96392.0,96391.0,8.56e-05]
[1735232740828,0.002,96392.0,96391.0,8.56e-05]
[1735232741964,0.002,96392.0,96391.0,0.02368743]
[1735232742179,0.0001712,96412.0,96409.0,0.207449]
[1735232742389,0.0001712,96412.0,96409.0,0.414898]
[1735232744106,0.0001712,96412.0,96409.0,0.207449]
[1735232744397,0.0001712,96412.0,96409.0,0.414898]
[1735232744630,0.0031712,96412.0,96409.0,0.414898]
[1735232745130,0.0061712,96412.0,96409.0,0.414898]
[1735232745261,0.0061712,96412.0,96409.0,0.43899121]
[1735232745463,0.0001712,96412.0,96409.0,0.43899121]
[1735232745665,0.0031712,96412.0,96409.0,0.43899121]
[1735232745971,0.0001712,96412.0,96409.0,0.43899121]
[1735232746402,0.0031712,96412.0,96409.0,0.43899121]
[1735232746823,0.0031712,96412.0,96411.0,0.02069922]
[1735232747504,0.0001712,96412.0,96411.0,0.02069922]
[1735232748268,0.0021712,96412.0,96411.0,0.02069922]
[1735232748660,0.0001712,96412.0,96411.0,0.02069922]
[1735232748856,0.0021712,96412.0,96411.0,0.02069922]